[Event "44th Chess Olympiad Open 2022"]
[Site "Chennai"]
[Date "2022.07.29"]
[Round "1.37"]
[White "Vera Siguenas, Deivy"]
[Black "Shaker, Musab"]
[Result "1-0"]
[WhiteElo "2503"]
[BlackElo "1705"]
[Annotator "RC"]
[PlyCount "53"]
[EventDate "2022.??.??"]
[TimeControl "60"]

1. e4 {[%emt 0:00:04]} e5 {[%emt 0:00:04]} 2. Nf3 {[%emt 0:00:07]} Nf6 {
[%emt 0:00:04]} 3. Nxe5 {[%emt 0:00:11]} d6 {[%emt 0:00:05]} 4. Nf3 {[%emt 0:
00:00]} Nxe4 {[%emt 0:00:15]} 5. d4 {[%emt 0:00:04]} d5 {[%emt 0:00:13]} 6. Bd3
{[%emt 0:00:06]} Bd6 {[%emt 0:00:09]} 7. O-O {[%emt 0:00:25]} O-O {[%emt 0:00:
00]} 8. c4 {[%emt 0:04:38]} c6 {[%emt 0:00:38]} 9. h3 {[%emt 0:00:05]} Nd7 {
[%emt 0:03:06]} 10. Qc2 {[%emt 0:07:22]} Ndf6 {[%emt 0:07:37]} 11. Nc3 {
[%emt 0:00:48]} Nxc3 {[%emt 0:13:17]} 12. bxc3 {[%emt 0:00:09]} h6 {[%emt 0:00:
00]} 13. Ne5 {[%emt 0:02:23]} Bxe5 {[%emt 0:10:25]} 14. dxe5 {[%emt 0:00:07]}
Nd7 {[%emt 0:05:48]} 15. f4 {[%emt 0:00:46]} dxc4 {[%emt 0:03:46]} 16. Bxc4 {
[%emt 0:01:20]} Nb6 {[%emt 0:01:33]} 17. Bd3 {[%emt 0:02:27]} Be6 {[%emt 0:00:
00]} 18. Qe2 {[%emt 0:08:39]} Nd5 {[%emt 0:05:10]} 19. Bd2 {[%emt 0:01:56]}
Qb6+ {[%emt 0:04:45]} 20. Kh1 {[%emt 0:00:47]} f5 {[%emt 0:06:41]} 21. exf6 {
[%emt 0:03:13]} Rxf6 {[%emt 0:00:25]} 22. c4 {[%emt 0:00:25]} Nc7 {[%emt 0:00:
00]} 23. Bc3 {[%emt 0:01:15]} Rff8 {[%emt 0:01:34]} 24. f5 {[%emt 0:01:57]} Bf7
{[%emt 0:00:42]} 25. Bxg7 {[%emt 0:02:16]} Bh5 {[%emt 0:08:32]} 26. Qxh5 {
[%emt 0:00:39]} Kxg7 {[%emt 0:00:13]} 27. Qg6+ {[%emt 0:00:11]} 1-0

[Event "44th Chess Olympiad Open 2022"]
[Site "Chennai"]
[Date "2022.07.29"]
[Round "1.37"]
[White "Ayyad, Maher"]
[Black "Cordova, Emilio"]
[Result "0-1"]
[WhiteElo "2101"]
[BlackElo "2549"]
[Annotator "RC"]
[PlyCount "68"]
[EventDate "2022.??.??"]
[TimeControl "60"]

1. d4 {[%emt 0:03:55]} Nf6 {[%emt 0:00:30]} 2. Nf3 {[%emt 0:00:11]} e6 {
[%emt 0:00:14]} 3. g3 {[%emt 0:00:48]} b6 {[%emt 0:01:02]} 4. Bg2 {[%emt 0:00:
00]} Bb7 {[%emt 0:00:05]} 5. O-O {[%emt 0:00:09]} c5 {[%emt 0:00:11]} 6. c4 {
[%emt 0:03:10]} cxd4 {[%emt 0:03:54]} 7. Nxd4 {[%emt 0:00:25]} Bxg2 {[%emt 0:
00:00]} 8. Kxg2 {[%emt 0:00:04]} a6 {[%emt 0:00:14]} 9. b3 {[%emt 0:02:51]} Qc7
{[%emt 0:00:13]} 10. Bb2 {[%emt 0:01:11]} Qb7+ {[%emt 0:00:12]} 11. Kg1 {
[%emt 0:01:19]} d6 {[%emt 0:00:56]} 12. Nc3 {[%emt 0:10:33]} Nbd7 {[%emt 0:00:
00]} 13. Rc1 {[%emt 0:00:19]} Be7 {[%emt 0:00:15]} 14. Qd2 {[%emt 0:08:38]} O-O
{[%emt 0:01:20]} 15. Rfd1 {[%emt 0:08:51]} Rac8 {[%emt 0:01:38]} 16. Qe3 {
[%emt 0:16:33]} Rfe8 {[%emt 0:06:42]} 17. Qf3 {[%emt 0:01:59]} Qc7 {[%emt 0:00:
00]} 18. Ne4 {[%emt 0:02:06]} h6 {[%emt 0:08:25]} 19. Nxf6+ {[%emt 0:10:07]}
Bxf6 {[%emt 0:00:09]} 20. Qd3 {[%emt 0:02:44]} Ne5 {[%emt 0:02:54]} 21. Qd2 {
[%emt 0:00:32]} Qb7 {[%emt 0:00:47]} 22. Nf3 {[%emt 0:00:48]} Nxf3+ {[%emt 0:
00:00]} 23. exf3 {[%emt 0:00:56]} Bxb2 {[%emt 0:03:40]} 24. Qxb2 {[%emt 0:00:
00]} Red8 {[%emt 0:00:04]} 25. Rd3 {[%emt 0:00:56]} b5 {[%emt 0:00:14]} 26.
cxb5 {[%emt 0:00:58]} Rxc1+ {[%emt 0:01:28]} 27. Qxc1 {[%emt 0:00:06]} axb5 {
[%emt 0:00:04]} 28. a4 {[%emt 0:01:05]} d5 {[%emt 0:00:54]} 29. Qf4 {[%emt 0:
00:00]} bxa4 {[%emt 0:01:11]} 30. Rc3 {[%emt 0:02:44]} e5 {[%emt 0:03:13]} 31.
Qxa4 {[%emt 0:04:56]} d4 {[%emt 0:00:09]} 32. Qa5 {[%emt 0:06:28]} Ra8 {
[%emt 0:12:37]} 33. Qc7 {[%emt 0:01:45]} Qb5 {[%emt 0:00:33]} 34. Qc4 {[%emt 0:
00:00]} dxc3 {[%emt 0:03:44]} 0-1

[Event "44th Chess Olympiad Open 2022"]
[Site "Chennai"]
[Date "2022.07.29"]
[Round "1.37"]
[White "Al-Burshaid, Ebrahim"]
[Black "Escalante Ramirez, Brian Sebasti"]
[Result "0-1"]
[WhiteElo "1702"]
[BlackElo "2496"]
[Annotator "RC"]
[PlyCount "62"]
[EventDate "2022.??.??"]
[TimeControl "60"]

1. e4 {[%emt 0:02:14]} e6 {[%emt 0:00:02]} 2. d4 {[%emt 0:00:18]} d5 {[%emt 0:
00:00]} 3. Nc3 {[%emt 0:00:23]} Bb4 {[%emt 0:00:57]} 4. e5 {[%emt 0:00:30]} c5
{[%emt 0:00:12]} 5. Bd2 {[%emt 0:01:03]} cxd4 {[%emt 0:09:37]} 6. Nb5 {[%emt 0:
00:00]} Bf8 {[%emt 0:00:03]} 7. Nf3 {[%emt 0:04:14]} Nc6 {[%emt 0:01:06]} 8.
Nbxd4 {[%emt 0:05:08]} Nge7 {[%emt 0:01:22]} 9. Bd3 {[%emt 0:04:45]} Nxd4 {
[%emt 0:05:37]} 10. Nxd4 {[%emt 0:01:04]} Nc6 {[%emt 0:00:02]} 11. Nf3 {
[%emt 0:05:47]} Be7 {[%emt 0:38:15]} 12. Qe2 {[%emt 0:06:46]} Nb4 {[%emt 0:00:
00]} 13. Bxb4 {[%emt 0:03:43]} Bxb4+ {[%emt 0:00:03]} 14. c3 {[%emt 0:00:08]}
Bc5 {[%emt 0:01:52]} 15. O-O {[%emt 0:01:43]} O-O {[%emt 0:00:20]} 16. Rad1 {
[%emt 0:07:49]} Qe7 {[%emt 0:03:23]} 17. Bb1 {[%emt 0:06:53]} Bd7 {[%emt 0:00:
00]} 18. h4 {[%emt 0:09:13]} f5 {[%emt 0:06:58]} 19. exf6 {[%emt 0:06:19]} Qxf6
{[%emt 0:03:11]} 20. Qc2 {[%emt 0:05:56]} Qh6 {[%emt 0:03:07]} 21. Qe2 {
[%emt 0:07:31]} Rf6 {[%emt 0:02:56]} 22. Qe5 {[%emt 0:04:08]} Raf8 {[%emt 0:00:
00]} 23. Qc7 {[%emt 0:03:16]} Bc6 {[%emt 0:01:11]} 24. Qg3 {[%emt 0:05:14]} Rf4
{[%emt 0:05:51]} 25. Rfe1 {[%emt 0:05:52]} d4 {[%emt 0:05:25]} 26. cxd4 {
[%emt 0:02:17]} Bxf3 {[%emt 0:00:18]} 27. gxf3 {[%emt 0:00:15]} Be7 {[%emt 0:
00:00]} 28. Re4 {[%emt 0:00:44]} Rxf3 {[%emt 0:02:14]} 29. Qg4 {[%emt 0:00:31]}
Rxf2 {[%emt 0:00:21]} 30. Rxe6 {[%emt 0:00:27]} Qxh4 {[%emt 0:00:16]} 31. Re4 {
[%emt 0:00:34]} Qh2# {[%emt 0:00:05]} 0-1

[Event "44th Chess Olympiad Open 2022"]
[Site "Chennai"]
[Date "2022.07.29"]
[Round "1.38"]
[White "Adly, Ahmed"]
[Black "Al Mutairi, Abdullah F"]
[Result "1-0"]
[WhiteElo "2582"]
[BlackElo "1916"]
[Annotator "RC"]
[PlyCount "63"]
[EventDate "2022.??.??"]
[TimeControl "60"]

1. d4 {[%emt 0:00:31]} d5 {[%emt 0:01:13]} 2. Nf3 {[%emt 0:00:10]} Nf6 {
[%emt 0:00:33]} 3. Bg5 {[%emt 0:00:24]} Bf5 {[%emt 0:00:25]} 4. Nbd2 {[%emt 0:
00:00]} e6 {[%emt 0:08:21]} 5. c3 {[%emt 0:00:13]} Nbd7 {[%emt 0:00:58]} 6. Nh4
{[%emt 0:00:09]} Bg6 {[%emt 0:00:21]} 7. Nxg6 {[%emt 0:00:15]} hxg6 {[%emt 0:
00:00]} 8. e4 {[%emt 0:00:04]} Be7 {[%emt 0:01:04]} 9. e5 {[%emt 0:01:14]} Ng8
{[%emt 0:01:04]} 10. Be3 {[%emt 0:00:37]} c5 {[%emt 0:02:44]} 11. Bd3 {[%emt 0:
00:00]} cxd4 {[%emt 0:02:22]} 12. cxd4 {[%emt 0:00:33]} Bg5 {[%emt 0:09:33]}
13. f4 {[%emt 0:06:16]} Bh4+ {[%emt 0:01:24]} 14. Ke2 {[%emt 0:00:15]} Qb6 {
[%emt 0:02:45]} 15. a4 {[%emt 0:01:04]} a6 {[%emt 0:02:19]} 16. a5 {[%emt 0:00:
00]} Qb4 {[%emt 0:00:43]} 17. Qc2 {[%emt 0:01:16]} Bd8 {[%emt 0:02:56]} 18. Nf3
{[%emt 0:04:25]} b5 {[%emt 0:13:01]} 19. Bd2 {[%emt 0:07:09]} Qf8 {[%emt 0:00:
00]} 20. g4 {[%emt 0:11:14]} Rh3 {[%emt 0:05:55]} 21. Kf2 {[%emt 0:01:50]} Ra7
{[%emt 0:01:57]} 22. Kg2 {[%emt 0:01:16]} Rh8 {[%emt 0:03:18]} 23. Rac1 {
[%emt 0:01:25]} Ne7 {[%emt 0:06:16]} 24. Bb4 {[%emt 0:00:30]} Qg8 {[%emt 0:00:
00]} 25. Ng5 {[%emt 0:00:45]} Rc7 {[%emt 0:01:06]} 26. Qxc7 {[%emt 0:02:07]}
Bxc7 {[%emt 0:00:37]} 27. Rxc7 {[%emt 0:00:05]} f6 {[%emt 0:01:29]} 28. Bxg6+ {
[%emt 0:00:14]} Kd8 {[%emt 0:00:27]} 29. Rhc1 {[%emt 0:02:42]} Rxh2+ {[%emt 0:
00:00]} 30. Kxh2 {[%emt 0:00:11]} Qh8+ {[%emt 0:00:17]} 31. Nh7 {[%emt 0:00:33]
} fxe5 {[%emt 0:00:35]} 32. fxe5 {[%emt 0:00:35]} 1-0

[Event "44th Chess Olympiad Open 2022"]
[Site "Chennai"]
[Date "2022.07.29"]
[Round "1.38"]
[White "Hesham, Abdelrahman"]
[Black "Alzamil, Abdulaziz"]
[Result "1-0"]
[WhiteElo "2386"]
[BlackElo "1871"]
[Annotator "ChessBase"]
[PlyCount "67"]
[EventDate "2022.??.??"]
[TimeControl "60"]

1. e4 {[%emt 0:02:09]} d6 {[%emt 0:00:20]} 2. d4 {[%emt 0:00:08]} Nf6 {[%emt 0:
00:00]} 3. Nc3 {[%emt 0:00:09]} Nbd7 {[%emt 0:00:42]} 4. Nf3 {[%emt 0:06:02]}
e5 {[%emt 0:02:25]} 5. Rg1 {[%emt 0:00:00]} c6 {[%emt 0:19:00]} 6. g4 {[%emt 0:
00:00]} exd4 {[%emt 0:21:26]} 7. Nxd4 {[%emt 0:02:40]} Nc5 {[%emt 0:23:29]} 8.
f3 {[%emt 0:08:25]} g6 {[%emt 0:09:31]} 9. Be3 {[%emt 0:00:47]} h6 {[%emt 0:00:
00]} 10. Qd2 {[%emt 0:04:39]} Qc7 {[%emt 0:03:41]} 11. O-O-O {[%emt 0:00:16]}
Bd7 {[%emt 0:02:52]} 12. h4 {[%emt 0:08:22]} O-O-O {[%emt 0:01:58]} 13. b4 {
[%emt 0:01:20]} Ne6 {[%emt 0:01:10]} 14. Nxe6 {[%emt 0:19:26]} Bxe6 {[%emt 0:
00:00]} 15. Bd4 {[%emt 0:02:42]} Bg7 {[%emt 0:00:37]} 16. g5 {[%emt 0:00:06]}
hxg5 {[%emt 0:00:29]} 17. hxg5 {[%emt 0:00:06]} Ne8 {[%emt 0:00:38]} 18. Bxg7 {
[%emt 0:00:07]} Nxg7 {[%emt 0:00:03]} 19. Qd4 {[%emt 0:00:06]} Nh5 {[%emt 0:00:
00]} 20. Qxa7 {[%emt 0:00:09]} Nf4 {[%emt 0:00:41]} 21. Na4 {[%emt 0:00:19]}
Kd7 {[%emt 0:00:32]} 22. Qe3 {[%emt 0:05:31]} d5 {[%emt 0:00:30]} 23. exd5 {
[%emt 0:00:24]} cxd5 {[%emt 0:00:29]} 24. Rd4 {[%emt 0:11:15]} Nh3 {[%emt 0:00:
00]} 25. Nc5+ {[%emt 0:00:16]} Ke7 {[%emt 0:00:10]} 26. Bxh3 {[%emt 0:00:15]}
Rxh3 {[%emt 0:00:17]} 27. Re1 {[%emt 0:00:05]} Rh2 {[%emt 0:00:38]} 28. Rf4 {
[%emt 0:01:18]} b6 {[%emt 0:00:34]} 29. Rxf7+ {[%emt 0:00:13]} Kxf7 {[%emt 0:
00:00]} 30. Qxe6+ {[%emt 0:00:04]} Kg7 {[%emt 0:00:32]} 31. Qf6+ {[%emt 0:00:
00]} Kg8 {[%emt 0:00:16]} 32. Re7 {[%emt 0:00:16]} Rh1+ {[%emt 0:00:42]} 33.
Kb2 {[%emt 0:00:05]} Rd6 {[%emt 0:00:33]} 34. Qg7# {[%emt 0:00:35]} 1-0

[Event "44th Chess Olympiad Open 2022"]
[Site "Chennai"]
[Date "2022.07.29"]
[Round "1.38"]
[White "Alharthi, Ahmed Mohammed A"]
[Black "Fawzy, Adham"]
[Result "0-1"]
[WhiteElo "1935"]
[BlackElo "2471"]
[Annotator "ChessBase"]
[PlyCount "71"]
[EventDate "2022.??.??"]
[TimeControl "60"]

1. d4 {[%emt 0:00:14]} Nf6 {[%emt 0:00:36]} 2. Bf4 {[%emt 0:01:11]} g6 {
[%emt 0:06:57]} 3. Nd2 {[%emt 0:04:39]} Bg7 {[%emt 0:02:28]} 4. e4 {[%emt 0:00:
00]} d6 {[%emt 0:02:19]} 5. c3 {[%emt 0:02:01]} Nbd7 {[%emt 0:03:33]} 6. Ngf3 {
[%emt 0:01:39]} O-O {[%emt 0:02:03]} 7. Bd3 {[%emt 0:10:02]} e5 {[%emt 0:01:57]
} 8. Bg5 {[%emt 0:08:53]} h6 {[%emt 0:05:28]} 9. Bh4 {[%emt 0:00:36]} c6 {
[%emt 0:09:05]} 10. O-O {[%emt 0:02:07]} Qc7 {[%emt 0:06:48]} 11. Qc2 {[%emt 0:
00:00]} Nh5 {[%emt 0:02:01]} 12. Bg3 {[%emt 0:05:45]} Nxg3 {[%emt 0:02:51]} 13.
hxg3 {[%emt 0:00:29]} Nf6 {[%emt 0:01:49]} 14. Rfe1 {[%emt 0:03:57]} exd4 {
[%emt 0:04:52]} 15. cxd4 {[%emt 0:03:22]} Ng4 {[%emt 0:02:01]} 16. Rad1 {
[%emt 0:06:29]} Bd7 {[%emt 0:07:43]} 17. Nb3 {[%emt 0:07:30]} Rae8 {[%emt 0:00:
00]} 18. Nc1 {[%emt 0:03:59]} c5 {[%emt 0:02:31]} 19. Ne2 {[%emt 0:03:39]} b5 {
[%emt 0:06:40]} 20. Nf4 {[%emt 0:03:42]} Rc8 {[%emt 0:04:05]} 21. Nd5 {[%emt 0:
00:00]} Qd8 {[%emt 0:00:02]} 22. Qd2 {[%emt 0:00:51]} cxd4 {[%emt 0:01:49]} 23.
Bb1 {[%emt 0:02:31]} Be6 {[%emt 0:08:24]} 24. Nf4 {[%emt 0:01:44]} Qb6 {
[%emt 0:05:05]} 25. Nxd4 {[%emt 0:01:57]} Rc4 {[%emt 0:00:52]} 26. Nf3 {
[%emt 0:05:04]} Re8 {[%emt 0:02:22]} 27. Rf1 {[%emt 0:01:29]} Be5 {[%emt 0:00:
00]} 28. a3 {[%emt 0:02:11]} Rcc8 {[%emt 0:00:30]} 29. Nxe6 {[%emt 0:01:31]}
Rxe6 {[%emt 0:00:51]} 30. Nxe5 {[%emt 0:00:30]} dxe5 {[%emt 0:00:02]} 31. Qd7 {
[%emt 0:01:18]} Rc7 {[%emt 0:01:23]} 32. Qd8+ {[%emt 0:00:42]} Kg7 {[%emt 0:00:
00]} 33. Qh4 {[%emt 0:00:25]} h5 {[%emt 0:00:11]} 34. Rd3 {[%emt 0:01:06]} Nxf2
{[%emt 0:01:08]} 35. Rxf2 {[%emt 0:00:41]} Rc1+ {[%emt 0:00:06]} 36. Kh2 {
[%emt 0:00:27]} 0-1

[Event "44th Chess Olympiad Open 2022"]
[Site "Chennai"]
[Date "2022.07.29"]
[Round "1.39"]
[White "Mirzaad, S.wahabuddin"]
[Black "Kadric, Denis"]
[Result "0-1"]
[WhiteElo "1999"]
[BlackElo "2554"]
[Annotator "ChessBase"]
[PlyCount "64"]
[EventDate "2022.??.??"]
[TimeControl "60"]

1. d4 {[%emt 0:00:15]} d6 {[%emt 0:00:04]} 2. Nf3 {[%emt 0:01:06]} g6 {[%emt 0:
00:00]} 3. e4 {[%emt 0:01:31]} Bg7 {[%emt 0:00:04]} 4. Nc3 {[%emt 0:02:08]} a6
{[%emt 0:00:05]} 5. Be3 {[%emt 0:04:39]} e6 {[%emt 0:01:32]} 6. Qd2 {[%emt 0:
00:00]} h6 {[%emt 0:00:12]} 7. a4 {[%emt 0:02:03]} b6 {[%emt 0:00:14]} 8. Bd3 {
[%emt 0:05:58]} Nd7 {[%emt 0:00:08]} 9. O-O {[%emt 0:00:34]} Ne7 {[%emt 0:00:
00]} 10. Rad1 {[%emt 0:01:13]} Bb7 {[%emt 0:00:05]} 11. h3 {[%emt 0:01:37]} Kf8
{[%emt 0:01:15]} 12. Nh2 {[%emt 0:03:46]} f5 {[%emt 0:07:26]} 13. exf5 {
[%emt 0:03:46]} exf5 {[%emt 0:00:32]} 14. Bc4 {[%emt 0:02:10]} Nf6 {[%emt 0:00:
00]} 15. f3 {[%emt 0:05:22]} Qd7 {[%emt 0:11:22]} 16. Bf2 {[%emt 0:03:03]} d5 {
[%emt 0:02:15]} 17. Bd3 {[%emt 0:04:18]} g5 {[%emt 0:00:02]} 18. Rfe1 {[%emt 0:
00:00]} Nh5 {[%emt 0:02:35]} 19. Bf1 {[%emt 0:06:51]} Kf7 {[%emt 0:00:29]} 20.
b3 {[%emt 0:07:05]} Ng6 {[%emt 0:01:32]} 21. Ne2 {[%emt 0:01:33]} Bf6 {[%emt 0:
00:00]} 22. Nc1 {[%emt 0:01:59]} Nhf4 {[%emt 0:00:16]} 23. g3 {[%emt 0:02:13]}
Nh5 {[%emt 0:02:10]} 24. Nd3 {[%emt 0:02:40]} Qd6 {[%emt 0:00:01]} 25. g4 {
[%emt 0:06:21]} Ng7 {[%emt 0:03:03]} 26. Bg2 {[%emt 0:03:53]} f4 {[%emt 0:00:
00]} 27. Re2 {[%emt 0:02:28]} Rhe8 {[%emt 0:02:25]} 28. Rde1 {[%emt 0:02:48]}
Rxe2 {[%emt 0:00:05]} 29. Rxe2 {[%emt 0:00:08]} a5 {[%emt 0:00:11]} 30. Bf1 {
[%emt 0:03:02]} Ne6 {[%emt 0:01:37]} 31. c3 {[%emt 0:01:09]} c5 {[%emt 0:06:16]
} 32. dxc5 {[%emt 0:05:46]} bxc5 {[%emt 0:00:03]} 0-1

[Event "44th Chess Olympiad Open 2022"]
[Site "Chennai"]
[Date "2022.07.29"]
[Round "1.39"]
[White "Mirzaad S.wahabuddin"]
[Black "Kadric Denis"]
[Result "1-0"]
[WhiteElo "1999"]
[BlackElo "2554"]
[Annotator "RC"]
[PlyCount "28"]
[EventDate "2022.??.??"]
[TimeControl "60"]

1. d4 {[%emt 0:00:15]} d6 {[%emt 0:00:04]} 2. Nf3 {[%emt 0:01:06]} g6 {[%emt 0:
00:00]} 3. e4 {[%emt 0:01:31]} Bg7 {[%emt 0:00:04]} 4. Nc3 {[%emt 0:02:08]} a6
{[%emt 0:00:05]} 5. Be3 {[%emt 0:04:39]} e6 {[%emt 0:01:32]} 6. Qd2 {[%emt 0:
00:00]} h6 {[%emt 0:00:12]} 7. a4 {[%emt 0:02:03]} b6 {[%emt 0:00:14]} 8. Bd3 {
[%emt 0:05:58]} Nd7 {[%emt 0:00:08]} 9. O-O {[%emt 0:00:34]} Ne7 {[%emt 0:00:
00]} 10. Rad1 {[%emt 0:01:13]} Bb7 {[%emt 0:00:05]} 11. h3 {[%emt 0:01:37]} Kf8
{[%emt 0:01:15]} 12. Nh2 {[%emt 0:03:46]} f5 {[%emt 0:07:26]} 13. exf5 {
[%emt 0:03:46]} exf5 {[%emt 0:00:32]} 14. Bc4 {[%emt 0:02:10]} Nf6 {[%emt 0:00:
00]} 1-0

[Event "44th Chess Olympiad Open 2022"]
[Site "Chennai"]
[Date "2022.07.29"]
[Round "1.39"]
[White "Sakhawaty, Sepehr"]
[Black "Draskovic, Luka"]
[Result "0-1"]
[WhiteElo "1809"]
[BlackElo "2503"]
[Annotator "ChessBase"]
[PlyCount "72"]
[EventDate "2022.??.??"]
[TimeControl "60"]

1. e4 {[%emt 0:00:17]} c5 {[%emt 0:00:23]} 2. Nf3 {[%emt 0:00:06]} d6 {[%emt 0:
00:00]} 3. d4 {[%emt 0:00:06]} cxd4 {[%emt 0:00:05]} 4. Nxd4 {[%emt 0:00:04]}
Nf6 {[%emt 0:00:51]} 5. Nc3 {[%emt 0:00:06]} Nc6 {[%emt 0:01:44]} 6. Bg5 {
[%emt 0:05:44]} e6 {[%emt 0:02:44]} 7. Bc4 {[%emt 0:04:36]} Be7 {[%emt 0:02:33]
} 8. Bxf6 {[%emt 0:08:35]} Bxf6 {[%emt 0:02:47]} 9. Nde2 {[%emt 0:10:55]} a6 {
[%emt 0:04:35]} 10. a4 {[%emt 0:03:01]} Qb6 {[%emt 0:02:28]} 11. Rb1 {[%emt 0:
00:00]} Qc5 {[%emt 0:02:07]} 12. Bb3 {[%emt 0:04:25]} O-O {[%emt 0:01:29]} 13.
O-O {[%emt 0:01:18]} b5 {[%emt 0:10:05]} 14. Qd2 {[%emt 0:10:13]} Bb7 {[%emt 0:
00:00]} 15. Nc1 {[%emt 0:08:46]} Nd4 {[%emt 0:09:05]} 16. Re1 {[%emt 0:03:21]}
Rac8 {[%emt 0:11:45]} 17. Qd1 {[%emt 0:20:57]} b4 {[%emt 0:06:36]} 18. N3a2 {
[%emt 0:04:39]} Nxb3 {[%emt 0:05:50]} 19. Nxb3 {[%emt 0:02:34]} Qxc2 {[%emt 0:
00:00]} 20. Nxb4 {[%emt 0:00:17]} Qxd1 {[%emt 0:01:07]} 21. Rbxd1 {[%emt 0:00:
00]} Rc4 {[%emt 0:00:19]} 22. Nd3 {[%emt 0:01:05]} Rxe4 {[%emt 0:02:40]} 23.
Rxe4 {[%emt 0:01:37]} Bxe4 {[%emt 0:00:06]} 24. f3 {[%emt 0:01:04]} Bc6 {
[%emt 0:01:00]} 25. Na5 {[%emt 0:01:21]} Bxa4 {[%emt 0:00:21]} 26. b3 {[%emt 0:
00:00]} Bb5 {[%emt 0:00:13]} 27. Nb4 {[%emt 0:00:35]} d5 {[%emt 0:04:13]} 28.
Rc1 {[%emt 0:00:21]} Bb2 {[%emt 0:01:48]} 29. Rc2 {[%emt 0:00:38]} Bd4+ {
[%emt 0:00:07]} 30. Kh1 {[%emt 0:00:05]} Bb6 {[%emt 0:00:20]} 31. Nbc6 {
[%emt 0:00:21]} g6 {[%emt 0:01:08]} 32. Nb7 {[%emt 0:00:29]} d4 {[%emt 0:01:01]
} 33. Ne5 {[%emt 0:00:41]} d3 {[%emt 0:00:53]} 34. Rd2 {[%emt 0:00:15]} Be3 {
[%emt 0:00:40]} 35. Rxd3 {[%emt 0:00:38]} Bxd3 {[%emt 0:00:16]} 36. Nxd3 {
[%emt 0:00:01]} Rb8 {[%emt 0:00:15]} 0-1

[Event "44th Chess Olympiad Open 2022"]
[Site "Chennai"]
[Date "2022.07.29"]
[Round "1.40"]
[White "Suleymenov, Alisher"]
[Black "Yan, Austin K"]
[Result "1-0"]
[WhiteElo "2467"]
[BlackElo "1568"]
[Annotator "ChessBase"]
[PlyCount "61"]
[EventDate "2022.??.??"]
[TimeControl "60"]

1. d4 {[%emt 0:00:03]} d5 {[%emt 0:00:33]} 2. c4 {[%emt 0:00:07]} c6 {[%emt 0:
00:00]} 3. Nc3 {[%emt 0:02:28]} Nf6 {[%emt 0:00:19]} 4. e3 {[%emt 0:00:04]} e6
{[%emt 0:00:49]} 5. Nf3 {[%emt 0:00:07]} Nbd7 {[%emt 0:00:35]} 6. Be2 {[%emt 0:
00:00]} Bd6 {[%emt 0:05:54]} 7. O-O {[%emt 0:00:33]} O-O {[%emt 0:13:10]} 8. b3
{[%emt 0:00:10]} dxc4 {[%emt 0:03:47]} 9. bxc4 {[%emt 0:00:07]} e5 {[%emt 0:00:
00]} 10. Bb2 {[%emt 0:00:32]} Re8 {[%emt 0:09:41]} 11. Qc2 {[%emt 0:00:06]} e4
{[%emt 0:04:59]} 12. Nd2 {[%emt 0:01:45]} Nf8 {[%emt 0:07:09]} 13. d5 {[%emt 0:
00:00]} Qe7 {[%emt 0:17:10]} 14. Rad1 {[%emt 0:05:47]} Bf5 {[%emt 0:03:31]} 15.
Nb3 {[%emt 0:03:39]} Ng6 {[%emt 0:06:35]} 16. c5 {[%emt 0:09:59]} Bxc5 {
[%emt 0:01:04]} 17. Nb5 {[%emt 0:00:06]} cxb5 {[%emt 0:08:15]} 18. Qxc5 {
[%emt 0:03:44]} a6 {[%emt 0:06:53]} 19. d6 {[%emt 0:02:13]} Qd7 {[%emt 0:00:26]
} 20. Bxf6 {[%emt 0:08:32]} gxf6 {[%emt 0:00:24]} 21. Qb6 {[%emt 0:07:39]} Bg4
{[%emt 0:06:37]} 22. Nc5 {[%emt 0:07:21]} Qf5 {[%emt 0:00:21]} 23. Bxg4 {
[%emt 0:02:39]} Qxg4 {[%emt 0:00:02]} 24. h3 {[%emt 0:00:21]} Qf5 {[%emt 0:00:
00]} 25. d7 {[%emt 0:03:15]} Red8 {[%emt 0:00:23]} 26. f3 {[%emt 0:01:22]} exf3
{[%emt 0:01:15]} 27. Rxf3 {[%emt 0:00:05]} Qe5 {[%emt 0:00:25]} 28. Nxb7 {
[%emt 0:01:17]} Nh4 {[%emt 0:00:28]} 29. Rf4 {[%emt 0:00:58]} Ng6 {[%emt 0:00:
00]} 30. Nxd8 {[%emt 0:01:23]} Nxf4 {[%emt 0:00:06]} 31. exf4 {[%emt 0:00:17]}
1-0

[Event "44th Chess Olympiad Open 2022"]
[Site "Chennai"]
[Date "2022.07.29"]
[Round "1.40"]
[White "Urazayev, Arystanbek"]
[Black "Hsu, Hsuan-Ming"]
[Result "1/2-1/2"]
[WhiteElo "2430"]
[BlackElo "1900"]
[Annotator "RC"]
[PlyCount "70"]
[EventDate "2022.??.??"]
[TimeControl "60"]

1. d4 {[%emt 0:00:17]} Nf6 {[%emt 0:00:10]} 2. c4 {[%emt 0:00:06]} g6 {[%emt 0:
00:00]} 3. Nc3 {[%emt 0:00:17]} Bg7 {[%emt 0:00:24]} 4. e4 {[%emt 0:00:38]} d6
{[%emt 0:00:06]} 5. Be2 {[%emt 0:00:10]} O-O {[%emt 0:00:47]} 6. Be3 {[%emt 0:
00:00]} e5 {[%emt 0:02:32]} 7. d5 {[%emt 0:00:07]} a5 {[%emt 0:02:23]} 8. h4 {
[%emt 0:00:37]} h5 {[%emt 0:08:41]} 9. f3 {[%emt 0:01:40]} Na6 {[%emt 0:01:15]}
10. Qd2 {[%emt 0:02:59]} Nc5 {[%emt 0:03:00]} 11. O-O-O {[%emt 0:03:43]} Bd7 {
[%emt 0:02:12]} 12. Nh3 {[%emt 0:01:33]} Ra6 {[%emt 0:08:32]} 13. Nf2 {[%emt 0:
00:00]} a4 {[%emt 0:11:32]} 14. Nd3 {[%emt 0:07:21]} Qe7 {[%emt 0:14:41]} 15.
Kb1 {[%emt 0:02:05]} Rfa8 {[%emt 0:03:38]} 16. Qc2 {[%emt 0:07:29]} Rb6 {
[%emt 0:13:27]} 17. Nxc5 {[%emt 0:07:33]} dxc5 {[%emt 0:00:10]} 18. Nb5 {
[%emt 0:00:31]} Ne8 {[%emt 0:10:12]} 19. g4 {[%emt 0:01:37]} f5 {[%emt 0:04:11]
} 20. gxf5 {[%emt 0:02:27]} gxf5 {[%emt 0:00:24]} 21. Rdg1 {[%emt 0:02:14]} f4
{[%emt 0:00:53]} 22. Bf2 {[%emt 0:00:38]} Rh6 {[%emt 0:02:41]} 23. Rg5 {
[%emt 0:01:58]} Kh7 {[%emt 0:01:30]} 24. Rhg1 {[%emt 0:14:44]} Bf6 {[%emt 0:00:
00]} 25. Rg8 {[%emt 0:02:43]} b6 {[%emt 0:01:45]} 26. Nc3 {[%emt 0:05:07]} Qf7
{[%emt 0:00:46]} 27. R8g2 {[%emt 0:05:33]} Nd6 {[%emt 0:00:24]} 28. Bd3 {
[%emt 0:04:12]} Bh3 {[%emt 0:00:44]} 29. Rh2 {[%emt 0:00:57]} Bd7 {[%emt 0:00:
00]} 30. Ne2 {[%emt 0:02:13]} Kh8 {[%emt 0:02:04]} 31. Qc3 {[%emt 0:00:41]} Re8
{[%emt 0:01:49]} 32. Bc2 {[%emt 0:03:51]} Rh7 {[%emt 0:01:45]} 33. Rhg2 {
[%emt 0:02:40]} Rg7 {[%emt 0:00:36]} 34. Rg3 {[%emt 0:00:53]} Rg6 35. Rxg6 {
[%emt 0:00:31]} Bg7 {[%emt 0:00:36]} 1/2-1/2